{"text_format":"1","workbook":"xlsx","n_sheets":7,"sheets":["STI Summary Report","STI Report","STI Measurement Position(s)","Ambient Noise","Advanced Settings","Language","Info"],"not_rendered":{"charts":0,"images":3,"macros":1,"external_links":0,"defined_names":7,"comments":0,"pivot_tables":0},"unopened":[],"bounds":{"document_bytes":16777216,"sheet_cells":100000,"rows_first":2000,"rows_last":500,"rows_between":2000,"halvings":0,"cell_chars":16384,"cell_head_chars":4096},"cells_cut":0,"cells_raw":0,"read":"whole","date_system":"1900"}

{"sheet":"STI Summary Report","index":0,"n_rows":15,"n_cols":8,"rows_kept":15,"cut":false,"hidden":false,"merged":[[1,0,1,2],[2,1,2,5],[3,1,3,5],[4,1,4,5],[12,5,14,5],[12,4,14,4],[12,3,14,3],[12,0,14,0]]}
[{"$f":"Language!$B$2","v":"STI Summary Report"}]
[{"$f":"Language!$B$3 & \"IEC 60268-16:2020\"","v":"Report according to IEC 60268-16:2020"}]
[{"$f":"Language!$B$4","v":"Project"},{"$f":"'STI Report'!B3","v":0}]
[{"$f":"Language!$B$5","v":"Description"},{"$f":"'STI Report'!B4","v":0}]
[{"$f":"Language!$B$6","v":"STI Standard"},{"$f":"'STI Report'!B5","v":"IEC 60268-16 ed5.0 2020"}]
[]
[null,null,{"$f":"Language!B8","v":"Arithmetic mean lav"},null,null,null,null,{"$f":"Language!B66","v":"When there are more than 10 measurement points, then 10% of the worst measurement results are ignored."}]
[{"$f":"Language!$B$7","v":"All"},null,{"$f":"Language!B9","v":"Standard deviation σ"},null,null,null,null,{"$f":"Language!#REF!","v":{"$error":"#REF!"}}]
[null,null,{"$f":"Language!B61","v":"95% Confidence Interval"},{"$f":"IF(D8>0, CONFIDENCE(0.05, D8, LoadedMeasurementPositions),\"\")","v":""},{"$f":"IF(D9<>\"\",'STI Report'!J5,\"\")","v":""},null,null,{"$f":"IF(0.5>=(D$7-D$8), IF(D$7>0.5, Language!B65,\"\"),IF(D$7<0.5, Language!B65,\"\"))","v":""}]
[null,null,{"$f":"Language!B63","v":"Minimum STI value"},null,{"$f":"IF(D10<>\"\",'STI Report'!J5,\"\")","v":""},null,null,{"$f":"MinMeasurementPositionsMessage()","v":"With a Room Area of 2500 square meters or more, there must be at least 15 measurement positions per 2500 square meters."}]
[null,null,{"$f":"Language!B10","v":"Total Result: lav - σ"}]
[]
[null,{"$f":"Language!$B$11","v":"Description"}]
[null,{"$f":"Language!$B$12","v":"STI Position"}]
[null,{"$f":"Language!$B$13","v":"Noise File"}]

{"sheet":"STI Report","index":1,"n_rows":28,"n_cols":14,"rows_kept":28,"cut":false,"hidden":false,"merged":[[11,4,11,6],[8,1,8,7],[2,1,2,11],[16,1,16,11],[21,2,21,3],[14,1,14,7],[18,2,18,3],[4,1,4,6],[3,1,3,11],[6,3,6,8],[7,4,7,7],[9,4,9,7]]}
[{"$f":"Language!$B$14","v":"STI Report"},null,null,null,null,null,null,null,null,null,null,null,null,{"$f":"Language!$B$30","v":"Language"}]
["Version 5.03"]
[{"$f":"Language!$B$4","v":"Project"}]
[{"$f":"Language!$B$5","v":"Description"}]
[{"$f":"Language!$B$6","v":"STI Standard"},"IEC 60268-16 ed5.0 2020",null,null,null,null,null,null,{"$f":"Language!$B$15","v":"Unit"},"STI"]
[]
[null,null,null,{"$f":"Language!$B$16","v":"Loaded Measurement Positions"}]
["STI",null,null,null,0]
[null,{"$f":"Language!$B$19","v":"Get all data directly from XL2"}]
[{"$f":"Language!$B$35","v":"Ambient Noise"},null,null,null,0]
[null,null,null,null,null,{"$f":"Language!$B$59","v":"STIPA Signal Level Gain:"},0,"dB",{"$f":"Language!$B$60","v":"* manually adjusted"}]
[null,null,null,{"$f":"Language!$B$64","v":"Room Area:"},5000,null,null,"m²"]
[]
[]
[{"$f":"Language!$B$62","v":"STI Measurement Position"}]
[{"$f":"Language!$B$13","v":"Noise File"}]
[{"$f":"Language!$B$11","v":"Description"}]
[]
[null,"LAeq",null,null,null,null,null,{"$f":"Language!$B$24","v":"Band [Hz]"}]
[null,{"$f":"Language!$B$23","v":"Broadband"},null,"Hz",125,250,500,"1k","2k","4k","8k"]
[{"$f":"Language!$B$25","v":"STI Test Signal Level [dB]"},null,null,"LZeq"]
[{"$f":"Language!$B$26","v":"Ambient Noise added [dB]"},null,"LZeq"]
[null,null,null,null,null,{"$f":"Language!$B$59","v":"STIPA Signal Level Gain:"},0,"dB",{"$f":"Language!$B$60","v":"* manually adjusted"}]
[null,null,null,null,null,null,null,{"$f":"Language!$B$34","v":"Cycle "}]
[null,{"$f":"Language!$B$27","v":"Average"},null,"Δ","(1)","(2)","(3)","(4)","(5)","(6)","(7)","(8)"]
[{"$f":"Language!$B$28","v":"Measured STI results [STI]"}]
[{"$f":"Language!$B$29","v":"Status"}]
[{"$f":"Language!$B$28 & IF($B22<>0,Language!$B$55,\"\")","v":"Measured STI results [STI]"}]

{"sheet":"STI Measurement Position(s)","index":2,"n_rows":12,"n_cols":12,"rows_kept":12,"cut":false,"hidden":false,"merged":[[7,2,7,3],[4,1,4,8],[5,0,5,11],[6,1,7,1]]}
[{"$f":"Language!$B$31","v":"STI Measurement Position(s)"}]
[{"$f":"Language!$B$32","v":"(Levels & Modulation Indices)"}]
[4]
[]
[{"$f":"Language!$B$12","v":"STI Position"}]
[]
[null,{"$f":"Language!$B$33","v":"Measured STI"},null,null,null,null,null,null,{"$f":"Language!$B$24","v":"Band [Hz]"}]
[null,{"$f":"\"Measured STIPA results [\" & $J$5 & \"]\"","v":"Measured STIPA results []"},{"$f":"Language!$B$23","v":"Broadband"},null,null,125,250,500,"1k","2k","4k","8k"]
[{"$f":"Language!$B$27","v":"Average"},null,"LAeq",null,"LZeq"]
[{"$f":"Language!$B$34 & \"1\"","v":"Cycle 1"},null,null,null,"LZeq"]
[null,null,null,null,"mr1"]
[null,null,null,null,"mr2"]

{"sheet":"Ambient Noise","index":3,"n_rows":5,"n_cols":11,"rows_kept":5,"cut":false,"hidden":false,"merged":[[3,2,3,3],[6,0,6,11]]}
[{"$f":"Language!$B$35","v":"Ambient Noise"}]
[]
[]
[{"$f":"Language!$B$13","v":"Noise File"},null,{"$f":"Language!$B$24","v":"Band [Hz]"},null,125,250,500,"1k","2k","4k","8k"]
[null,null,null,"LZeq"]

{"sheet":"Advanced Settings","index":4,"n_rows":21,"n_cols":6,"rows_kept":21,"cut":false,"hidden":false,"merged":[[2,1,2,9],[5,1,5,9],[1,2,1,10],[4,2,4,10]]}
[{"$f":"Language!$B$36","v":"Advanced Settings"}]
[null,null,{"$f":"Language!$B$37","v":"Show STIPA Signal Level Gain"}]
[null,{"$f":"Language!$B$38","v":"With the 'STI Signal Level Gain' you can simulate what effect a louder or quieter STI signal has on speech intelligibility."}]
[]
[null,null,{"$f":"Language!$B$39","v":"Noise Files: Ask to change all positions"}]
[null,{"$f":"Language!$B$40","v":"With this setting active, when you select a Noise File, you will be asked if you want that same Noise File to be used at all the other Measurement Positions as well."}]
[]
[null,{"$f":"Language!$B$56","v":"Minimum STI Requirements"},null,null,null,0.5]
[]
[null,0.5,"STI"]
[null,0.45,"STI"]
[]
[]
[null,{"$f":"Language!$B$57","v":"Show extra report information in accordance with"},null,null,null,2]
[null,"IEC 60268-16:2020"]
[null,"ISO 3382-3"]
[null,"AS1670.4"]
[null,"DIN VDE 833-4:2024-06"]
[null,"DIN EN 50849:2017"]
[null,"CEN/TS 54-32:2015"]
[null,"ISO 7240-19:2007"]

{"sheet":"Language","index":5,"n_rows":73,"n_cols":16,"rows_kept":73,"cut":false,"hidden":false,"merged":[]}
["English","Active","English","Deutsch","Español","Francais","ελληνικά","Italiano","Nederlands","Norsk","Polski (Polish)","Svensk","Suomalainen","中文","한국어","Japanese"]
["Deutsch","STI Summary Report","STI Summary Report","STI-Messbericht Übersicht","Informe Resumido STI","STI Rapport récapitulatif","Έκθεση αποτελεσμάτων STI","Rapporto riassuntivo STI","STI Rapportage","STI Sluttrapport","STI Raport zbiorczy","STI Summa rapport","STI yhteenvetoraportti","STI 整体报告","STI 종합 보고서","STI サマリーレポート"]
["Español","Report according to ","Report according to ","Bericht gemäß ","Informe acorde a las normas ","Rapport conforme à la norme ","Αποτελέσματα σύμφωνα με ","Rapporto in accordo a ","Rapportage conform ","Rapport i henhold til ","Raport zgodnie z ","Rapport i enlighet med ","Raportti ","报告符合以下标准：","다음 기술 표준에 의한 보고: ","および"]
["Francais","Project","Project","Projekt","Proyecto","Projet","Έργο","Progetto","Project","Prosjekt","Projekt","Projekt","Projekti","项目名称","프로젝트 이름","プロジェクト"]
["ελληνικά","Description","Description","Beschreibung","Descripción","Commentaires","Περιγραφή","Descrizione","Commentaar","Beskrivelse","Opis","Beskrivning","Selitys","描述","설명","コメント"]
["Italiano","STI Standard","STI Standard","STI-Norm","STI Estándar","STI Standard","STI Πρότυπο","STI Standard","STI Norm","STI Standard","STI Standard","STI Standard","STI Standardi","STI 标准","STI 표준","STI 規格"]
["Nederlands","All","All","Ergebnis","Todo","Tous","Συνολικά","Tutto","Totaal","Totalt","Wszystko","Totalt","Kaikki","综合","통합","All"]
["Norsk","Arithmetic mean lav","Arithmetic mean lav","Arithmetischer Mittelwert lav","Media aritmética lav","Moyenne arithmétique lav","Αριθμητικός μέσος όρος lav","Media aritmetica lav","Rekenkundig Gemiddelde lav","Aritmetisk Gjennomsnittsverdi","Średnia arytmetyczna lav","Arithmetic mean lav","Arithmetic mean lav","算术平均 lav","산술 평균 lav","算術平均 lav"]
["Polski (Polish)","Standard deviation σ","Standard deviation σ","Standardabweichung σ","Desviación estándar σ","Déviation standard σ","Τυπική απόκλιση σ","Deviazione standard σ","Standaarddeviatie σ","Standard deviasjon σ","Odchylenie standardowe σ","Standard deviation σ","Standard deviation σ","标准偏差 σ","표준 편차 σ","標準偏差 σ"]
["Svensk","Total Result: lav - σ","Total Result: lav - σ","Gesamtergebnis: lav - σ","Resultado total: lav - σ","Résultat total: lav - σ","Συνολικό αποτέλεσμα: lav - σ","Risultato totale: lav - σ","Totaal Resultaat: lav - σ","Totalt resultat: lav - σ","Wynik końcowy: lav - σ","Totalt resultat: lav - σ","Kokonaistulos: lav - σ","总值: lav - σ","총 측정 결과: lav-σ","Total Result: lav - σ"]
["Suomalainen","Description","Description","Beschreibung","Descripción","Position","Περιγραφή","Descrizione","Meetpositie","Beskrivelse","Opis","Beskrivning","Selitys","描述","설명","コメント"]
["中文","STI Position","STI Position","STI-Position","Posición STI","STI Position","Θέση STI","Posizioni STI","STI waarde","STI Posisjon","Plik STIPA","STI Position","STI-tiedosto","STI 测量位置","STI 측정 위치 ","STI 測定位置"]
["한국어","Noise File","Noise File","Störgeräusch-Datei","Archivo de Ruido","Fichier de Bruit","Αρχείο Θορύβου","File Rumore","Stoorlawaai file","Noise File","Plik z szumem","Noise File","Noise-tiedosto","噪声文件","Noise 파일","騒音ファイル"]
["Japanese","STI Report","STI Report","STI-Messbericht","Informe STI","Rapport STI","Αποτελέσματα STI","Rapporto STI","STI rapport","STI Rapport","Raport STI","STI Rapport","STI-raportti","语言清晰度 STI 测量报告","STI 음성 명료 보고서","STIレポート"]
[null,"Unit","Unit","Einheit","Unidad","Unité","Μονάδα","Unità","Eenheid","Enhet","Jednostka","Enhet","Yksikkö","单位","단위","言語"]
[null,"Loaded Measurement Positions","Loaded Measurement Positions","Anzahl geladener Messpositionen","Posiciones de medida descargadas","Position de mesures chargées","Φορτωμένες θέσεις μέτρησης","Posizione di misura caricate","Opgeslagen Meetposities","Antall måleposisjoner","Załadowane pozycje pomiarów","Antal mätpositioner","Mittauspositioiden lkm","已加载测量位置","Load 측정 위치","測定位置"]
[null,"Remove All","Remove All","Alle löschen","Eliminar todo","Supprimer Files","Αφαίρεση όλων","Rimuovi tutto","Alles verwijderen","Ta bort alle","Usuń Wszystko","Ta bort alla","Poista kaikki","移除所有文件","모두 제거","全て削除"]
[null,"Remove All","Remove All","Alle löschen","Eliminar todo","Supprimer Files","Αφαίρεση όλων","Rimuovi tutto","Alles verwijderen","Ta bort alle","Usuń Wszystko","Ta bort alla","Poista kaikki","移除所有文件","모두 제거","全て削除"]
[null,"Get all data directly from XL2","Get all data directly from XL2","Alle Dateien direkt vom XL2 einlesen","Descargar datos directamente del XL2","Récupérer toutes les données de l'XL2","Λήψη όλων των δεδομένων \nαπευθείας από το XL2","Carica tutti i dati direttamente da XL2","Alles van XL2 inlezen","Hente all data direkte fra XL2","Pobierz dane bezpośrednio z XL2","Hämta all data direkt från XL2","Lataa kaikki data XL2:sta","直接加载XL2内所有数据","XL2 내의 모든 데이터를 직접 로드","XL2から全てのデータを読み込む"]
[null,"Add File(s)","Add File(s)","Datei(en)\nhinzufügen","Añadir Archivo(s)","Ajouter\n(des) Fichier(s)","Προσθήκη\nαρχείου(-ων)","Aggiungi\nFile","Files\ntoevoegen","Legg\ntil fil(er)","Dodaj Pliki","Lägg\ntill fil(er)","Lisää tiedosto(t)","添加文件","파일 추가","ファイルを追加"]
[null,"STI Signal Level Gain:","STI Signal Level Gain:","STI Signalanhebung:","Nivel de Ganancia de la señal STI:","Réglage de niveau du signal STI:","Κέρδος Στάθμης Σήματος STI","Guadagno del livello di segnale STIPA:","STI Signaalniveau Gain:","STI Signal Level Gain","Poziom wzmocnienia sygnału STI","STI Signal Level Gain:","STI Signal Level Gain:","STI 信号增益：","STI 신호 레벨 이득:","STI信号レベルゲイン:"]
[null,"* manually adjusted","* manually adjusted","* manuell angepaßt","* ajustado manualmente","* réglé manuellement","* ρυθμισμένο χειροκίνητα","* regolati manualmente","* manueel aangepast","*manuelt justert","* ręcznie dostosowane","* justerad manuellt","asetettu manuaalisesti ","* 手动调整","* 수동으로 조정","* マニュアル操作で変更"]
[null,"Broadband","Broadband","Summenpegel","Banda ancha","Pleine bande","Ευρεία ζώνη","Broadband","Sommatie","Bredbånd","Suma","Broadband","Laajakaistainen","宽频带","광대역","広帯域"]
[null,"Band [Hz]","Band [Hz]","Band [Hz]","Banda [Hz]","Bandes [Hz]","Συχνοτική ζώνη [Hz]","Banda [Hz]","Octaafband [Hz]","Oktavband (Hz)","Pasmo [Hz]","Oktavband [Hz]","Kaista [Hz]","频带 [Hz]","주파수 대역 [Hz]","帯域 [Hz]"]
[null,"STI Test Signal Level [dB]","STI Test Signal Level [dB]","STI Testsignalpegel [dB]","Nivel señal de test STI [dB]","STI test niveau signal [dB]","Στάθμη Σήματος STI [dB]","Liv. di segnale di test STI [dB]","STI luidheid [dB]","STI Test Signal Level (dB)","Poziom sygnału STI [dB]","STI Test Signal Level [dB]","STI Test Signal Level [dB]","STI 测试信号电平[dB]","STI 테스트 신호 레벨 [dB]","STI 信号レベル [dB]"]
[null,"Ambient Noise added [dB]","Ambient Noise added [dB]","Störgeräuschpegel [dB]","Ruido Ambiental añadido [dB]","Bruit ambiant rajouté [dB]","Προστιθέμενος Θόρυβος [dB]","Rumore Ambientale agg. [dB]","Toevoeging stoorlawaai [dB]","Ambient Noise added (dB)","Dodany hałas otoczenia [dB]","Ambient Noise added [dB]","Ambient Noise added [dB]","环境噪声[dB]","주변 소음 추가 [dB]","追加された周囲騒音 [dB]"]
[null,"Average","Average","Mittelwert","Promedio","Moyenne","Μέσος όρος","Media  ","Gem. waarde","Middelverdi","Średnia (Avrg)","Medelvärde","Keskiarvo","平均值","평균","平均値"]
[null,"Measured STI results [STI]","Measured STI results [STI]","Sprachverständlichkeit [STI]","Resultados obtenidos STI [STI]","Résultat de mesure STI [STI]","Μετρούμενο STI [STI]","Risultati misure STI [STI]","Gemeten STI waarde [STI]","Målt STI resultat (STI)","Wyniki pomiaru STI [STI]","Upmätt STI resultat [STI]","Mitattu STI-tulos [STI]","量测的STI结果 [STI]","STI 측정 결과 [STI]","STI測定値 [STI]"]
[null,"Status","Status","Status","Estado","État","Κατάσταση","Stato","Status","Status","Status","Status","Status","状态","상태","ステータス"]
[null,"Language","Language","Sprache","Idioma","Language","Γλώσσα","Lingua","Language","Språk","Jezyk","Language","Kieli","语言","언어","言語"]
[null,"STI Measurement Position(s)","STI Measurement Position(s)","STI Messposition(en)","Posiciones de medida STI","STI Position(s) de mesures","Θέση(-εις) μέτρησης STI","Posizioni delle misure STI","Gemeten STI waarde","STI Måleposisjon(er)","Lokalizacje pomiarów STI","STI Mätposition(er)","STI mittauspositio(t)","STI 测量位置","STI 측정 위치 ","STI 測定位置"]
[null,"(Levels & Modulation Indices)","(Levels & Modulation Indices)","(Pegel & Modulationsindizes)","(Niveles e Índices de modulación)","(Indices de Niveaux & Modulations)","(Στάθμες & Δείκτες Διαμόρφωσης)","(Levelli & Indici di Modulazione)","(Luidheden en Modulatie indices)","(Level & Modulation Indices)","(Wskaźniki poziomów i modulacji)","(Levels & Modulation Indices)","(Levels & Modulation Indices)","(电平与调制指数)","(레벨 및 변조 인덱스)","（レベルと変調指数）"]
[null,"Measured STI","Measured STI","Messwert STI","Medida STI","Résultat de mesure STI","STI μέτρησης","Misure STI","Gemeten STI","Målt STI resultat (STI)","Zmierzone STI","Measured STI","Measured STI","STI 结果","STI 결과","測定値STI"]
[null,"Cycle ","Cycle ","Zyklus ","Ciclo","Cycle ","Κύκλος","Cicli","Cyclus ","Cycle","Cykl","Cycle ","Cycle ","周期","Cycle ","サイクル"]
[null,"Ambient Noise","Ambient Noise","Störgeräusch(e)","Ruido ambiental","Mesures de bruit","Αρχεία Θορύβου","Rumore","Stoorlawaai","Ambient Noise","Szum otoczenia","Ambient Noise","Noise Files","噪声","Ambient Noise","騒音ファイル"]
[null,"Advanced Settings","Advanced Settings","Erweiterte Einstellungen","Ajustes avanzados","Paramètres avancés","Προχωρημένες ρυθμίσεις","Impostazioni Avanzate","Geavanceerde Instellingen","Avanserte instillinger","Ustawienia zaawansowane","Avancerade inställningar","Laajennetut asetukset","高级设置","고급 설정","詳細設定"]
[null,"Show STIPA Signal Level Gain","Show STIPA Signal Level Gain","STIPA Signalanhebung zeigen","Mostrar el nivel de ganancia de señal STIPA","Indication de niveau du signal STIPA","Εμφάνιση Κέρδους Στάθμης Σήματος STIPA","Mostra il livello di guadagno del segnale STIPA","Toon STIPA Signaalniveau Gain","Vis STIPA signal nivå","Pokaż poziom wzmocnienia sygnału STIPA","Show STIPA Signal Level Gain","Show STIPA Signal Level Gain","显示STIPA信号电平增益","STIPA 신호 레벨 증가 디스플레이 ","STIPA信号レベルゲインを表示"]
[null,"With the 'STI Signal Level Gain' you can simulate what effect a louder or quieter STI signal has on speech intelligibility.","With the 'STI Signal Level Gain' you can simulate what effect a louder or quieter STI signal has on speech intelligibility.","Mit der 'STI Signalanhebung' können Sie simulieren, wie sich eine lautere / leisere Wiedergabe des STI Signals auf die Sprachverständlichkeit auswirkt.","Con el 'Nivel de ganancia de Señal STI' puede simular qué efecto tendría una señal STI más alta o más baja sobre la inteligibilidad de la palabra","Le 'réglage de niveau du signal STI' vous permet de simuler l'effet qu'un signal STI plus fort ou plus faible a sur l'intelligibilité de la parole.","Με το 'Κέρδος Στάθμης Σήματος STI' μπορείτε να προσομοιώσετε την επίδραση που έχει ένα σήμα STI χαμηλότερης ή υψηλότερης στάθμης στην καταληπτότητα της ομιλίας.","Con il 'Livello di guadagno del segnale STI' è possibile simulare l'effetto sull'intellegibilità del parlato di un segnale STI più  / meno forte.","Met de 'STI Signaalniveau Gain' kunt u simuleren welk effect een luider of stiller STI signaal heeft op verstaanbaarheid van spraak.","Med \"STI Signal Level Gain\" kan du simulere hvilken effekt et sterkere eller svakere STI signal har på taletydligheten.","Zmieniając 'wzmocnienienie sygnału STI' możesz zasymulować jak głośniejszy lub cichszy sygnał STI wpływa na wynik zrozumiałości mowy ","Med 'STI Signal Level Gain' kan du simulera vilken effekt en starkare el svagare STI signal har på taltydligheten.","STI Signal Level Gain' säädöllä voit simuloida kovemman tai hiljaisemman Sti-mittasignaalin vaikutusta puheen ymmärrettävyyteen.","勾选“显示STI信号电平增益”选项后，用户可以模拟信号增大或者减小对语言清晰度结果的影响","옵션, \"STI 신호 레벨 이득 표시\" 사용자가 신호 증가 또는 음성 명료의 결과에 대해 시뮬레이션할 수 있습니다","「STI信号レベルゲインを表示」では、STI信号レベルの増減による音声明瞭度への影響をシミュレートできます。"]
[null,"Noise Files: Ask to change all positions","Noise Files: Ask to change all positions","Abfrage zur Änderung aller Messpositionen","Archivos de Ruido: Preguntar para cambiar todas las posiciones","Confirmation lors du changement des fichiers bruit","Αρχεία Θορύβου: Ερώτηση για την αλλαγή όλων των θέσεων","File Rumere: chiedi di cambiare tutt ele posizioni.","Alle stoorlawaaibestanden aanpassen","Noise Files: Spørre om å endre alle måleposisjoner","Plik hałasu: zapytaj czy zmienić wszystkie pozycje","Noise Files: Fråga om att ändra på alla mätpositioner","Noise Files: Pyydä muuttamaan mittauspiste","噪声文件：询问是否应用于所有测量位置","Noise 파일: 모든 위치 변경 요청","騒音ファイル：全ての測定位置に適用するか指定"]
[null,"With this setting active, when you select a Noise File, you will be asked if you want that same Noise File to be used at all the other Measurement Positions as well.","With this setting active, when you select a Noise File, you will be asked if you want that same Noise File to be used at all the other Measurement Positions as well.","Wenn diese Einstellung aktiv ist werden Sie bei jeder Zuordnung einer Störgeräusch Datei gefragt, ob Sie diese für alle Messpositionen übernehmen möchten.","Con este ajuste activo, cuando selecione un Archivo de Ruido, se le preguntará si desea aplicar ese mismo archivo a todas las demás posiciones de medida también.","Avec ce paramètre, lors de la sélection d'un fichier bruit, il vous sera demandé si vous désirez utiliser ce fichier bruit également pour toutes les autres positions de mesure.","Με την ενεργοποίηση αυτής της ρύθμισης, όταν επιλέγετε ένα Αρχείο Θορύβου, θα σας ζητηθεί εάν θέλετε το ίδιο Αρχείο Θορύβου να χρησιμοποιηθεί επίσης και σε όλες τις άλλες Θέσεις Μέτρησης.","Attivando questa opzione, quando si selezione un File Rumore, verrà richiesto se si vuole usare lo stesso File Rumore per tutte le posizioni di misura.","Indien een stoorlawaaibestand wordt geselecteerd, zal u gevraagd worden of u dit bestand wenst te gebruiken voor alle andere metingsposities.","Med denne instillingen aktiv, når du velger en \"Noise File\", kommer du til å bli spurt om du vil at samme \"Noise File\" skal brukes på alle andre måleposisjoner.","Z tą opcją aktywną, gdy wybierzesz \"Plik hałasu\" zostaniesz zapytany czy używać tego samego pliku do wszystkich innych pozycji pomiarowych.","Med denna inställning aktiverad när du väljer en 'Noise File', kommer du att bli tillfrågad om du vill att samma 'Noise File' används även på alla andra mätpositioner.","Kun tämä asetus on aktiivinen; valittaessa Noise File, kysytään jos haluat lisätä saman Noise Filen käytettäväksi jokaiselle muullekkin mittauspositiolle.","勾选此选项后，当用户选择一个噪声文件时，软件会提示是否同时将此噪声文件应用于所有其他的测量位置。","사용자가 선택 하는 Noise 파일을 다른 모든 위치에 적용하여 이 Noise를 측정 할 것인지 묻는 메시지를 표시 할때 당신은 이 옵션을 선택 합니다.","この設定を選択した場合、騒音ファイルを選択した時に他の全ての測定位置についても同じ騒音ファイルを適用するか指定できます。"]
[null,"Should the Noise File be removed from all Measurement Positions?","Should the Noise File be removed from all Measurement Positions?","Störgeräusch Datei von allen Messpositionen entfernen?","¿Eliminar el Archivo de Ruido de todas las Posiciones de Medida?","Supprimer le fichier bruit de toutes les positions de mesure?","Να αφαιρεθεί το Αρχείο Θορύβου από όλες τις Θέσεις Μέτρησης;","Si deve rimuove il File Rumore da tutte le Posizioni di Misura?","Wenst u het stoorlawaaibestand te verwijderen uit alle metingsposities?","Skal \"Noise File\" tas bort fra alle måleposisjoner?","Czy usunąć plik z szumem we wszystkich miejscach pomiaru ?","Ska 'Noise File' tas bort från alla mätpositioner?","Poistetaanko 'Noise File' kaikista mittapositioista?","是否移除所有测量位置处的噪声文件?","모든 측정 위치에서 Noise 파일을 제거 하시겠습니까?","Should the Noise File be removed from all Measurement Positions?"]
[null,"Should this Noise File be used for all Measurement Positions?","Should this Noise File be used for all Measurement Positions?","Soll diese Störgeräusch-Datei für alle Messpositionen verwendet werden?","¿Añadir el Archivo de Ruido en todas las posiciones de medida?","Voulez-vous appliquer ce fichier bruit à toutes les positions de mesures?","Να χρησιμοποιηθεί αυτό το Αρχείο Θορύβου για όλες τις Θέσεις Μέτρησης;","Si deve usare lo stesso File Rumore da tutte le Posizioni di Misura?","Wenst u het stoorlawaaibestand toe te passen aan alle meetposities?","Skal denne \"Noise File\" benyttes i alle måleposisjoner?","Czy ten \"Plik hałasu\" powinien być wykorzystany we wszystkich \"Pozycjach Pomiarowych\"?","Ska denna 'Noise File' användas för alla mätpositioner?","Käytetäänkö tätä 'Noise File' kaikille mittauspositioille?","是否将此噪声文件应用于所有测量位置?","모든 측정 위치에서 Noise 파일을 사용 하시겠습니까?","この騒音ファイルを全ての測定位置に適用しますか?"]
[null,"Are you sure you want to load all the files from your XL2?","Are you sure you want to load all the files from your XL2?","Alle Files vom XL2 laden?","¿Está seguro de que quiere cargar todos los archivos del XL2?","Êtes vous certain de vouloir charger tous les fichiers depuis votre XL2?","Είστε σίγουρος ότι θέλετε να φορτώσετε όλα τα αρχεία από το XL2;","Sei sicuro di voler caricare tutti i file dal tuo XL2?","Wilt U alle bestanden vanaf Xl2 laden?","Er du sikker på at du har lastet opp alle filer fra XL2?","Czy chcesz załadowac wszystkie pliki z Twojego XL2?","Är du säker att du ladda upp alla filer från din XL2?","Haluatko varmasti ladata kaikki tiedostot XL2-laitteestasi?","是否确定加载XL2内所有数据?","당신은  XL2의 모든 데이터 파일을 로드 하시겠습니까?","Are you sure you want to load all the files from your XL2?"]
[null,"No data files found in \\Projects\\MyProject folder on XL2","No data files found in \\Projects\\MyProject folder on XL2","Keine Datenfiles in \\Projects\\MyProject gefunden","No hay datos o archivos en la carpeta \\Projects\\MyProject del XL2","Le dossier \\Projects\\MyProject n'a pas été trouvé dans l'XL2","Δεν βρέθηκαν αρχεία δεδομένων στον φάκελο \\Projects\\MyProject στο XL2","Nessun dato trovato nell cartella \\Projects\\MyProject su XL2","Geen bestanden gevonden in \\Projects\\MyProject","Ingen datafiler funnet i \\Projects\\MyProsject folder i XL2","Nie znaleziono plików w katalogu \\Projects\\MyProject na urządzeniu XL2","Inga datafiler funna i \\Projects\\MyProject folder på XL2","Datatiedostoja ei löydy \\Projects\\MyProject folder XL2:ssa"," 文件夹 \\Projects\\MyProject 未发现可用数据文件","XL2에  \\Projects\\MyProject 폴더에 데이터가 파일 없음","No data files found in \\Projects\\MyProject folder on XL2"]
[null,"Folder \"\\Projects\\MyProject\" not found on XL2","Folder \"\\Projects\\MyProject\" not found on XL2","XL2 Ordner \"\\Projects\\MyProject\" nicht gefunden","No se encuentra la carpeta \"\\Projects\\MyProject\"","Le dossier \"\\Projects\\MyProject\" n'a pas été trouvé dans l'XL2","Ο φάκελος \"\\Projects\\MyProject\" δεν βρέθηκε στο XL2","Cartella \"\\Projects\\MyProject\" non trovata su XL2","De map \"\\Projects\\MyProject\" is niet aanwezig","Folder \"\\Projects\\MyProject\" ikke funnet i XL2","Katalog \"\\Projects\\MyProject\" nie znaleziony na urządzeniu XL2","Folder \"\\Projects\\MyProject\" hittades ej på XL2","Kansiota \"\\Projects\\MyProject\" ei löydy XL2:ssa","XL2 内未发现 \"\\Projects\\MyProject\" 文件夹","폴더 \"\\Projects\\MyProject\"를 XL2에서  찾을 수 없습니다.","Folder \"\\Projects\\MyProject\" not found on XL2"]
[null,"File Error","File Error","Fehler","Error de Archivo","Erreur de fichier","Σφάλμα Αρχείου","Errore File","Bestandsfout","File Error","Błąd pliku","File Error","File Error","文件出错","파일 오류","File Error"]
[null,"Load Error","Load Error","Fehler","Error de carga","Erreur de chargement","Σφάλμα Φόρτωσης","Errore caricamento","Fout bij het laden","Load Error","błąd ładowania pliku","Load Error","Load Error","加载出错","Load 오류","Load Error"]
[null,"Wrong filter setting in RTA File.","Wrong filter setting in RTA File.","Die Datei kann nicht geladen werden.","Ajuste de filtro erróneo en el archivo RTA","Paramètre de filtre incorrect dans le fichier RTA.","Λάθος ρύθμιση φίλτρου στο αρχείο RTA.","Impostazioni di filtro errate nel File RTA.","Verkeerde filterinstelling in het RTA bestand.","Feil filterinstilling i RTA File","Niewłaściwe ustawienia filtra w pliku RTA.","Fel filterinställning i RTA File.","Väärät suodinasetukset RTA-tiedostossa.","RTA文件内计权设置错误","RTA 파일에 잘못된 필터 설정입니다.","Wrong filter setting in RTA File."]
[null,"Filter setting must be FLAT.","Filter setting must be FLAT.","Filter FLAT ist zu verwenden.","El ajuste del filtro debe ser plano (FLAT)","Le paramètre de filtre doit être plat (FLAT).","Η ρύθμιση του φίλτρου πρέπει να είναι FLAT. ","L'impostazine del filtro deve essere FLAT.","De filterinstelling moet vlak zijn.","Filterinstillingen må være FLAT","wybierz ustawienia filtra - FLAT","Filterinställningen måste vara FLAT.","Suodinasetukset pitää olla FLAT.","频率计权必须设置为 FLAT","필터 설정은 평단 해야만 합니다.","Filter setting must be FLAT."]
[null,"does not contain STIPA data.","does not contain STIPA data.","beinhaltet keine STIPA-Messdaten.","No contiene datos STIPA","ne contient pas les données STIPA","δεν εμπεριέχει δεδομένα STIPA.","non contiene dati STIPA","bevat geen STIPA gegevens.","Inneholder ingen STIPA data.","nie zawiera danych STIPA.","Innehåller ingen STIPA data.","Ei sisällä STIPA-dataa.","未包含 STIPA 数据","STIPA 데이터를 포함 하지 않습니다.","does not contain STIPA data."]
[null,"does not contain valid RTA data.","does not contain valid RTA data.","beinhaltet keine gültigen RTA-Messdaten .","No contiene datos válidos STIPA","ne contient pas de données RTA valides.","δεν εμπεριέχει έγκυρα δεδομένα RTA.","non contiene dati RTA validi.","bevat geen geldige RTA gegevens.","Inneholder ingen gyldig RTA data.","nie zawiera prawidłowych danych RTA.","Innehåller ingen giltig RTA data.","Ei sisällä kelpaavaa RTA-dataa.","未包含 有效的RTA 数据","RTA 유효한 데이터를 포함 하지 않습니다.","does not contain valid RTA data."]
[null,"does not contain frequency band data.","does not contain frequency band data.","beinhaltet keine Frequenzband-Messdaten .","No contiene datos de la banda de frecuencia","ne contient pas les données de bandes de fréquences.","δεν εμπεριέχει δεδομένα συχνοτικής ζώνης.","non contiene dati sulle bande di frequenza.","bevat geen frequentieband data.","Inneholder ikke frequency band data.","nie zawiera danych zakresu częstotliwości","Innehåller ej frequency band data.","Ei sisällä frequency band  -dataa.","未包含频带相关数据","주파수 밴드 데이터를 포함 하지 않습니다.","does not contain frequency band data."]
[null,"does not contain LZeq data.","does not contain LZeq data.","beinhaltet keine LZeq-Messdaten.","No contien datos Lzeq","ne contient pas les données LZeq.","δεν εμπεριέχει δεδομένα LZeq.","non contiene dati Lzeq.","bevat geen LZeq gegevens.","Inneholder ikke Lzeq data","Nie zawiera wartości LZeq.","Innehåller ej LZeq data.","Ei sisällä LZeq-dataa.","未包含 Lzeq 数据","Lzeq 데이터를 포함 하지 않습니다.","does not contain LZeq data."]
[null,"Added:","Added:","Hinzugefügt:","Añadido:","Ajoutée:","Προστιθέμενα:","Aggiunti:","Toegevoegd:","Added:","Dodatkowo:","Added:","Lisätty:","添加：","추가:","Added:"]
[null," including Noise added"," including Noise added"," mit Störgeräuschkorrektur"," Incluyendo Ruido añadido"," Incluant le bruit à ajouter"," συμπεριλαμβάνει τον προστιθέμενο Θόρυβο "," con Rumore aggiunto"," met toevoeging stoorlawaai"," including Noise added","zawiera dodany szum "," including Noise added"," including Noise added","包含添加的噪声文件"," Noise 파일 추가"," including Noise added"]
[null,"Minimum STI Requirements","Minimum STI Requirements","Minimale STI Anforderungen","Requerimientos mínimos STI","Exigence STI minimum","Ελάχιστες απαιτήσεις STI","Requisiti STI minimi","Minimale STI vereisten","Minimum STI Requirements","Minimalne wymagania STI ","Minimum STI Requirements","Minimum STI Requirements","STI最小值","Minimum STI Requirements","Minimum STI Requirements"]
[null,"Show extra report information in accordance with","Show extra report information in accordance with","Norm für Messbericht-Details auswählen","Mostrar el informe acorde con","Afficher le rapport selon la norme","Εμφάνιση report σε συμφωνία με ","Mostra il report in accord a ","Geef rapport weer volgens de norme","Show extra report information in accordance with","pokaż raport zgodnie z:","Show extra report information in accordance with","Show extra report information in accordance with","按照此标准显示报告","Show extra report information in accordance with","Show extra report information in accordance with"]
[]
[null,"STIPA Signal Level Gain:","STIPA Signal Level Gain:","STIPA Signalanhebung:","Nivel de Ganancia de la señal STIPA","Réglage de niveau du signal STIPA:","Κέρδος Στάθμης Σήματος STIPA:","Guadagno del livello di segnale STIPA:","STIPA Signaalniveau Gain:","STIPA Signal Level Gain:","Wzmcnienie Poziomu Sygnału STIPA","STIPA Signal Level Gain:","STIPA Signal Level Gain:","STIPA信号电平增益","STIPA 신호 레벨 이득:","STIPA Signal Level Gain:"]
[null,"* manually adjusted","* manually adjusted","* manuell angepaßt","* Ajustado manualmente","* réglé manuellement","* ρυθμισμένο χειροκίνητα","* regolato manualmente","* manueel aangepast","*manuelt justert","* skorygowano ręcznie","* justerad manuellt","* manuaalisesti säädetty","* 手动调整","* 수동으로 조정","* manually adjusted"]
[null,"95% Confidence Interval","95% Confidence Interval","95% Konfidenz-Intervall","Intervalo de Confianza 95%","95% Confidence Interval","95% Διάστημα Εμπιστοσύνης","Intervallo di Confidenza 95%","95% Confidence Interval","95% Confidence Interval","95% przedział ufności","95% Confidence Interval","95% Confidence Interval","95%置信度","95% Confidence Interval","95% Confidence Interval"]
[null,"STI Measurement Position","STI Measurement Position","STI-Messposition","Posición de medida STI","STI Position de mesures","Θέση μέτρησης STI","Posizioni delle misure STI","Gemeten STI waarde","STI Måleposisjon","Miejsce(a) pomiaru STI ","STI Mätposition","STI-tiedosto","STI 测量位置","STI 측정 위치 ","STI Measurement Position"]
[null,"Minimum STI value","Minimum STI value","Minimaler STI-Wert","Minimum STI value","Minimum STI value","Minimum STI value","Minimum STI value","Minimum STI value","Minimum STI value","Minimum STI value","Minimum STI value","Minimum STI value","Minimum STI value","Minimum STI value","Minimum STI value"]
[null,"Room Area:","Room Area:","Raumfläche:","Room Area:","Room Area:","Room Area:","Room Area:","Room Area:","Room Area:","Room Area:","Room Area:","Room Area:","Room Area:","Room Area:","Room Area:"]
[null,"Repeat Measurements with more Points","Repeat Measurements with more Points","Wiederholen Sie die Messung mit mehr Messpunkten","Repeat Measurements with more Points","Repeat Measurements with more Points","Repeat Measurements with more Points","Repeat Measurements with more Points","Repeat Measurements with more Points","Repeat Measurements with more Points","Repeat Measurements with more Points","Repeat Measurements with more Points","Repeat Measurements with more Points","Repeat Measurements with more Points","Repeat Measurements with more Points","Repeat Measurements with more Points"]
[null,"When there are more than 10 measurement points, then 10% of the worst measurement results are ignored.","When there are more than 10 measurement points, then 10% of the worst measurement results are ignored.","Falls die Anzahl der Messpunkte > 10 ist, dann werden die schlechtesten 10% der Messergebnisse ignoriert.","When there are more than 10 measurement points, then 10% of the worst measurement results are ignored.","When there are more than 10 measurement points, then 10% of the worst measurement results are ignored.","When there are more than 10 measurement points, then 10% of the worst measurement results are ignored.","When there are more than 10 measurement points, then 10% of the worst measurement results are ignored.","When there are more than 10 measurement points, then 10% of the worst measurement results are ignored.","When there are more than 10 measurement points, then 10% of the worst measurement results are ignored.","When there are more than 10 measurement points, then 10% of the worst measurement results are ignored.","When there are more than 10 measurement points, then 10% of the worst measurement results are ignored.","When there are more than 10 measurement points, then 10% of the worst measurement results are ignored.","When there are more than 10 measurement points, then 10% of the worst measurement results are ignored.","When there are more than 10 measurement points, then 10% of the worst measurement results are ignored.","When there are more than 10 measurement points, then 10% of the worst measurement results are ignored."]
[null,"With a Room Area of less than 25 square meters, there must be at least 1 measurement position.","With a Room Area of less than 25 square meters, there must be at least 1 measurement position.","mindestens ein Messpunkt bei Raumfläche < 25 m2","at least 1 measurement position @ room area >  25 m2","at least 1 measurement position @ room area >  25 m2","at least 1 measurement position @ room area >  25 m2","at least 1 measurement position @ room area >  25 m2","at least 1 measurement position @ room area >  25 m2","at least 1 measurement position @ room area >  25 m2","at least 1 measurement position @ room area >  25 m2","at least 1 measurement position @ room area >  25 m2","at least 1 measurement position @ room area >  25 m2","at least 1 measurement position @ room area >  25 m2","at least 1 measurement position @ room area >  25 m2","at least 1 measurement position @ room area >  25 m2"]
[null,"With a Room Area of 25 to less than 100 square meters, there must be at least 3 measurement positions.","With a Room Area of 25 to less than 100 square meters, there must be at least 3 measurement positions.","Mindestens drei Messpunkte bei einer Raumfläche von 25 bis kleiner 100 m2","at least 3 measurement positions @ room area from 25 to less than 100 m2","at least 3 measurement positions @ room area from 25 to less than 100 m2","at least 3 measurement positions @ room area from 25 to less than 100 m2","at least 3 measurement positions @ room area from 25 to less than 100 m2","at least 3 measurement positions @ room area from 25 to less than 100 m2","at least 3 measurement positions @ room area from 25 to less than 100 m2","at least 3 measurement positions @ room area from 25 to less than 100 m2","at least 3 measurement positions @ room area from 25 to less than 100 m2","at least 3 measurement positions @ room area from 25 to less than 100 m2","at least 3 measurement positions @ room area from 25 to less than 100 m2","at least 3 measurement positions @ room area from 25 to less than 100 m2","at least 3 measurement positions @ room area from 25 to less than 100 m2"]
[null,"With a Room Area of 100 to less than 500 square meters, there must be at least 6 measurement positions.","With a Room Area of 100 to less than 500 square meters, there must be at least 6 measurement positions.","Mindestens sechs Messpunkte bei einer Raumfläche von 100 bis kleiner 500 m2","at least 6 measurement positions @ room area from 100 to less than 500 m2","at least 6 measurement positions @ room area from 100 to less than 500 m2","at least 6 measurement positions @ room area from 100 to less than 500 m2","at least 6 measurement positions @ room area from 100 to less than 500 m2","at least 6 measurement positions @ room area from 100 to less than 500 m2","at least 6 measurement positions @ room area from 100 to less than 500 m2","at least 6 measurement positions @ room area from 100 to less than 500 m2","at least 6 measurement positions @ room area from 100 to less than 500 m2","at least 6 measurement positions @ room area from 100 to less than 500 m2","at least 6 measurement positions @ room area from 100 to less than 500 m2","at least 6 measurement positions @ room area from 100 to less than 500 m2","at least 6 measurement positions @ room area from 100 to less than 500 m2"]
[null,"With a Room Area of 500 to less than 1500 square meters, there must be at least 10 measurement positions.","With a Room Area of 500 to less than 1500 square meters, there must be at least 10 measurement positions.","Mindestens zehn Messpunkte bei einer Raumfläche von 500 bis kleiner 1500 m2","at least 10 measurement positions @ room area from 500 to less than 1500 m2","at least 10 measurement positions @ room area from 500 to less than 1500 m2","at least 10 measurement positions @ room area from 500 to less than 1500 m2","at least 10 measurement positions @ room area from 500 to less than 1500 m2","at least 10 measurement positions @ room area from 500 to less than 1500 m2","at least 10 measurement positions @ room area from 500 to less than 1500 m2","at least 10 measurement positions @ room area from 500 to less than 1500 m2","at least 10 measurement positions @ room area from 500 to less than 1500 m2","at least 10 measurement positions @ room area from 500 to less than 1500 m2","at least 10 measurement positions @ room area from 500 to less than 1500 m2","at least 10 measurement positions @ room area from 500 to less than 1500 m2","at least 10 measurement positions @ room area from 500 to less than 1500 m2"]
[null,"With a Room Area of 1500 to less than 2500 square meters, there must be at least 15 measurement positions.","With a Room Area of 1500 to less than 2500 square meters, there must be at least 15 measurement positions.","Mindestens 15 Messpunkte bei einer Raumfläche von 1500 bis kleiner 2500 m2","at least 15 measurement positions @ room area from 1500 to less than 2500 m2","at least 15 measurement positions @ room area from 1500 to less than 2500 m2","at least 15 measurement positions @ room area from 1500 to less than 2500 m2","at least 15 measurement positions @ room area from 1500 to less than 2500 m2","at least 15 measurement positions @ room area from 1500 to less than 2500 m2","at least 15 measurement positions @ room area from 1500 to less than 2500 m2","at least 15 measurement positions @ room area from 1500 to less than 2500 m2","at least 15 measurement positions @ room area from 1500 to less than 2500 m2","at least 15 measurement positions @ room area from 1500 to less than 2500 m2","at least 15 measurement positions @ room area from 1500 to less than 2500 m2","at least 15 measurement positions @ room area from 1500 to less than 2500 m2","at least 15 measurement positions @ room area from 1500 to less than 2500 m2"]
[null,"With a Room Area of 2500 square meters or more, there must be at least 15 measurement positions per 2500 square meters.","With a Room Area of 2500 square meters or more, there must be at least 15 measurement positions per 2500 square meters.","Mindestens 15 Messpunkte pro 2500 m2 bei einer Raumfläche >= 2500 m2","at least 15 measurement positions per 2500 m2 @ room area >= 2500 m2","at least 15 measurement positions per 2500 m2 @ room area >= 2500 m2","at least 15 measurement positions per 2500 m2 @ room area >= 2500 m2","at least 15 measurement positions per 2500 m2 @ room area >= 2500 m2","at least 15 measurement positions per 2500 m2 @ room area >= 2500 m2","at least 15 measurement positions per 2500 m2 @ room area >= 2500 m2","at least 15 measurement positions per 2500 m2 @ room area >= 2500 m2","at least 15 measurement positions per 2500 m2 @ room area >= 2500 m2","at least 15 measurement positions per 2500 m2 @ room area >= 2500 m2","at least 15 measurement positions per 2500 m2 @ room area >= 2500 m2","at least 15 measurement positions per 2500 m2 @ room area >= 2500 m2","at least 15 measurement positions per 2500 m2 @ room area >= 2500 m2"]
[null,"Add Folder\n(with subfolders)","Add Folder\n(with subfolders)","Ordner hinzufügen\n(mit Unterordner)","Add Folder\n(with subfolders)","Add Folder\n(with subfolders)","Add Folder\n(with subfolders)","Add Folder\n(with subfolders)","Add Folder\n(with subfolders)","Add Folder\n(with subfolders)","Add Folder\n(with subfolders)","Add Folder\n(with subfolders)","Add Folder\n(with subfolders)","Add Folder\n(with subfolders)","Add Folder\n(with subfolders)","Add Folder\n(with subfolders)"]

{"sheet":"Info","index":6,"n_rows":47,"n_cols":4,"rows_kept":47,"cut":false,"hidden":false,"merged":[[5,0,5,7],[44,3,44,7],[45,3,45,7],[46,3,46,7],[18,1,18,7],[19,1,19,7],[20,1,20,7],[21,1,21,7],[29,1,29,6],[34,3,34,7],[35,3,35,7],[36,3,36,7],[37,3,37,7],[27,1,27,6],[38,3,38,7],[39,3,39,7],[40,3,40,7],[41,3,41,7],[42,3,42,7],[43,3,43,7]]}
["Instructions"]
["October 2020"]
[]
["Welcome to the Speech Intelligibility Reporting Tool."]
[]
["Use the \"Add Files(s)\" button on the \"STI Report\" tab to simply import the speech intelligibility data files\nfrom your XL2 or AL1 instruments into this form."]
[]
[]
["XL2 file types"]
["-","Speech intelligibility file",null," \"*_STIPA_***_Report.txt\""]
["-","Ambient noise file",null," \"*_RTA_3rd_Report.txt\""]
["-","Ambient noise file",null," \"*_RTA_Oct_Report.txt\""]
[]
["AL1 file types"]
["-","Speech intelligibility file",null," \"*_STI-PA.txt\""]
["-","Ambient noise file",null," \"*_SPL_RTA.txt\""]
[]
["Notes"]
["-","Click the \"Get all data directly from XL2\" checkbox on the \"STI Report\" tab to automatically find and load all relevant files directly from your XL2."]
["-","Moving the data file(s) first from your XL2 onto your computer hard drive and then importing from there into this form may speed up the data import."]
["-","To create reports in your local language, choose from the list in the \"Language\" dropdown box on the \"STI Report\" tab."]
["-","It is recommended that no more than 100 STIPA files be imported. Beyond this, the performance of Excel is limited."]
[]
["Add a new language"]
["-","If your language does not appear in the list, you can add a new language:"]
["-","Select the \"Language\" tab"]
["-","Add your translation into the first empty column on the right"]
["-","In the \"Language\" dropdown box on the \"STI Report\" tab, change to any language to load your new language"]
["-","Now select your new language"]
["-","Send the translated file to us at info@nti-audio.com - we are always happy to hear that another language has been added."]
[]
[]
["STI Qualification Bands"]
[]
[null,"Category","Nominal STI value","Examples of typical uses (for natural or reproduced voice)"]
[null,"A+",">0.76","Recording studios"]
[null,"A",0.74,"Theatres, speech auditoria, parliaments, courts, assistive hearing"]
[null,"B","0.70","Theatres, speech auditoria, parliaments, courts, assistive hearing"]
[null,"C",0.66,"Theatres, speech auditoria, teleconferencing, parliaments, courts"]
[null,"D",0.62,"Lecture theatres, classrooms, concert halls"]
[null,"E",0.57999999999999996,"Concert halls, modern churches"]
[null,"F",0.54,"PA systems in shopping malls, public buildings offices, VA systems"]
[null,"G","0.50","Shopping malls, public buildings offices, VA systems"]
[null,"H",0.46,"VA and PA systems in difficult acoustic environments"]
[null,"I",0.42,"VA and PA systems in very difficult spaces"]
[null,"J",0.38,"Not suitable for PA systems"]
[null,"U","<0.36","Not suitable for PA systems"]